[Event "Titled Tuesday Blitz January 03 Early 2023"]
[White "Garv Gaur"]
[Black "Samunenkov, Ihor"]
[WhiteFideId "45030839"]
[BlackFideId "14187086"]
[WhiteElo "2006"]
[BlackElo "2501"]
[Result "0-1"]
[Round "11"]
[TimeControl "180+2"]
[Date "2023.01.03"]
[WhiteClock "0:00:06"]
[BlackClock "0:00:09"]

1. d4 {[%clk 0:03:00]}  d5 {[%clk 0:02:58]} 2. Nf3 {[%clk 0:02:59]}  e6 {[%clk 0:02:58]} 3. c4 {[%clk 0:02:58]}  a6 {[%clk 0:02:58]} 4. cxd5 {[%clk 0:02:53]}  exd5 {[%clk 0:02:59]} 5. Nc3 {[%clk 0:02:53]}  Nf6 {[%clk 0:02:59]} 6. Bg5 {[%clk 0:02:51]}  Be6 {[%clk 0:02:59]} 7. e3 {[%clk 0:02:51]}  Nbd7 {[%clk 0:03:00]} 8. Bd3 {[%clk 0:02:50]}  Bd6 {[%clk 0:03:00]} 9. Qc2 {[%clk 0:02:46]}  c6 {[%clk 0:02:57]} 10. O-O {[%clk 0:02:43]}  Qc7 {[%clk 0:02:55]} 11. Bh4 {[%clk 0:02:40]}  O-O {[%clk 0:02:53]} 12. Rae1 {[%clk 0:02:38]}  Bg4 {[%clk 0:02:38]} 13. Bg3 {[%clk 0:02:37]}  Bxg3 {[%clk 0:02:38]} 14. hxg3 {[%clk 0:02:38]}  Rfe8 {[%clk 0:02:37]} 15. e4 {[%clk 0:02:37]}  dxe4 {[%clk 0:02:36]} 16. Nxe4 {[%clk 0:02:38]}  Nxe4 {[%clk 0:02:36]} 17. Bxe4 {[%clk 0:02:39]}  Nf6 {[%clk 0:02:37]} 18. Bf5 {[%clk 0:02:38]}  Bxf3 {[%clk 0:02:32]} 19. gxf3 {[%clk 0:02:38]}  g6 {[%clk 0:02:31]} 20. Be4 {[%clk 0:02:32]}  Rad8 {[%clk 0:02:27]} 21. d5 {[%clk 0:02:17]}  c5 {[%clk 0:02:03]} 22. Rd1 {[%clk 0:02:01]}  Qd6 {[%clk 0:01:58]} 23. Rfe1 {[%clk 0:02:00]}  b5 {[%clk 0:01:58]} 24. f4 {[%clk 0:02:00]}  c4 {[%clk 0:01:57]} 25. Bf3 {[%clk 0:01:59]}  Nd7 {[%clk 0:01:38]} 26. Qc3 {[%clk 0:01:43]}  Nc5 {[%clk 0:01:35]} 27. Re5 {[%clk 0:01:42]}  Nd3 {[%clk 0:01:34]} 28. Re3 {[%clk 0:01:34]}  Rxe3 {[%clk 0:01:18]} 29. fxe3 {[%clk 0:01:34]}  Qb6 {[%clk 0:01:18]} 30. Rxd3 {[%clk 0:01:26]}  cxd3 {[%clk 0:01:18]} 31. Qxd3 {[%clk 0:01:26]}  Qc5 {[%clk 0:01:14]} 32. Kf2 {[%clk 0:01:24]}  Qc1 {[%clk 0:01:09]} 33. Qd4 {[%clk 0:01:10]}  Rc8 {[%clk 0:00:33]} 34. d6 {[%clk 0:00:46]}  Rc2+ {[%clk 0:00:32]} 35. Be2 {[%clk 0:00:46]}  Qxb2 {[%clk 0:00:21]} 36. d7 {[%clk 0:00:27]}  Rxe2+ {[%clk 0:00:21]} 37. Kf3 {[%clk 0:00:27]}  Rf2+ {[%clk 0:00:21]} 38. Kg4 {[%clk 0:00:22]}  Qe2+ {[%clk 0:00:15]} 39. Kg5 {[%clk 0:00:19]}  Qh5+ {[%clk 0:00:16]} 40. Kf6 {[%clk 0:00:19]}  Qf5+ {[%clk 0:00:16]} 41. Ke7 {[%clk 0:00:19]}  Qe6+ {[%clk 0:00:16]} 42. Kd8 {[%clk 0:00:18]}  Rc2 {[%clk 0:00:14]} 43. g4 {[%clk 0:00:15]}  Rc6 {[%clk 0:00:11]} 44. f5 {[%clk 0:00:14]}  gxf5 {[%clk 0:00:08]} 45. gxf5 {[%clk 0:00:14]}  Qxf5 {[%clk 0:00:09]} 46. e4 {[%clk 0:00:10]}  Qg5+ {[%clk 0:00:09]} 47. Ke8 {[%clk 0:00:06]}  Re6# {[%clk 0:00:09]} 0-1


[Site "https://www.chess.com"]

[Event "Titled Tuesday Blitz January 03 Early 2023"]
[White "Khubukshanov, Erdem"]
[Black "Gheorghiu, Calin"]
[WhiteFideId "54114527"]
[BlackFideId "1200305"]
[WhiteElo "2382"]
[BlackElo "2313"]
[Result "1-0"]
[Round "11"]
[TimeControl "180+2"]
[Date "2023.01.03"]
[WhiteClock "0:00:26"]
[BlackClock "0:00:39"]

1. g3 {[%clk 0:03:00]}  e5 {[%clk 0:02:53]} 2. c4 {[%clk 0:03:00]}  Nc6 {[%clk 0:02:52]} 3. Bg2 {[%clk 0:02:59]}  Nf6 {[%clk 0:02:53]} 4. Nc3 {[%clk 0:02:58]}  Bb4 {[%clk 0:02:53]} 5. Nd5 {[%clk 0:02:57]}  Nxd5 {[%clk 0:02:50]} 6. cxd5 {[%clk 0:02:57]}  Ne7 {[%clk 0:02:50]} 7. a3 {[%clk 0:02:53]}  Bc5 {[%clk 0:02:47]} 8. e3 {[%clk 0:02:52]}  O-O {[%clk 0:02:46]} 9. Ne2 {[%clk 0:02:51]}  d6 {[%clk 0:02:46]} 10. d4 {[%clk 0:02:48]}  exd4 {[%clk 0:02:45]} 11. Nxd4 {[%clk 0:02:49]}  Re8 {[%clk 0:02:42]} 12. O-O {[%clk 0:02:47]}  Nf5 {[%clk 0:02:41]} 13. Ne2 {[%clk 0:02:33]}  h5 {[%clk 0:02:34]} 14. h3 {[%clk 0:02:25]}  h4 {[%clk 0:02:31]} 15. g4 {[%clk 0:02:25]}  Ne7 {[%clk 0:02:32]} 16. b4 {[%clk 0:02:13]}  Bb6 {[%clk 0:02:31]} 17. Bb2 {[%clk 0:02:13]}  Ng6 {[%clk 0:02:26]} 18. Nd4 {[%clk 0:02:11]}  a5 {[%clk 0:02:21]} 19. Qc2 {[%clk 0:01:53]}  axb4 {[%clk 0:01:42]} 20. axb4 {[%clk 0:01:52]}  Rxa1 {[%clk 0:01:43]} 21. Rxa1 {[%clk 0:01:52]}  Ne5 {[%clk 0:01:38]} 22. Ra8 {[%clk 0:01:17]}  Qe7 {[%clk 0:01:30]} 23. Nb5 {[%clk 0:01:07]}  Bd7 {[%clk 0:01:25]} 24. Rxe8+ {[%clk 0:00:56]}  Qxe8 {[%clk 0:01:26]} 25. Nxc7 {[%clk 0:00:49]}  Qc8 {[%clk 0:01:25]} 26. Bxe5 {[%clk 0:00:49]}  Bxc7 {[%clk 0:01:10]} 27. Bd4 {[%clk 0:00:44]}  Qd8 {[%clk 0:01:07]} 28. Bf1 {[%clk 0:00:36]}  Bb6 {[%clk 0:01:04]} 29. Qe4 {[%clk 0:00:32]}  Bxd4 {[%clk 0:01:00]} 30. Qxd4 {[%clk 0:00:33]}  Qc7 {[%clk 0:00:52]} 31. Bd3 {[%clk 0:00:32]}  Qc1+ {[%clk 0:00:51]} 32. Kg2 {[%clk 0:00:31]}  Qe1 {[%clk 0:00:48]} 33. Qb6 {[%clk 0:00:29]}  Qd1 {[%clk 0:00:39]} 34. Qd8+ {[%clk 0:00:26]} 1-0


[Site "https://www.chess.com"]

[Event "Titled Tuesday Blitz January 03 Early 2023"]
[White "Karttunen, Mika"]
[Black "Vysochin, Spartak"]
[WhiteFideId "502081"]
[BlackFideId "14103516"]
[WhiteElo "2490"]
[BlackElo "2512"]
[Result "0-1"]
[Round "11"]
[TimeControl "180+2"]
[Date "2023.01.03"]
[WhiteClock "0:00:16"]
[BlackClock "0:00:34"]

1. e4 {[%clk 0:03:00]}  e6 {[%clk 0:02:58]} 2. d4 {[%clk 0:03:00]}  d5 {[%clk 0:02:58]} 3. Nc3 {[%clk 0:02:59]}  Bb4 {[%clk 0:02:57]} 4. e5 {[%clk 0:02:57]}  Ne7 {[%clk 0:02:57]} 5. h4 {[%clk 0:02:56]}  c5 {[%clk 0:02:56]} 6. a3 {[%clk 0:02:53]}  Bxc3+ {[%clk 0:02:54]} 7. bxc3 {[%clk 0:02:54]}  Qc7 {[%clk 0:02:53]} 8. h5 {[%clk 0:02:53]}  h6 {[%clk 0:02:47]} 9. Nf3 {[%clk 0:02:49]}  b6 {[%clk 0:02:38]} 10. Bb5+ {[%clk 0:02:49]}  Bd7 {[%clk 0:02:38]} 11. Bd3 {[%clk 0:02:48]}  Ba4 {[%clk 0:02:38]} 12. Bf4 {[%clk 0:02:42]}  Nbc6 {[%clk 0:02:33]} 13. Qd2 {[%clk 0:02:40]}  c4 {[%clk 0:02:20]} 14. Be2 {[%clk 0:02:40]}  O-O-O {[%clk 0:02:20]} 15. g4 {[%clk 0:02:15]}  Kb7 {[%clk 0:02:11]} 16. Bg3 {[%clk 0:02:08]}  Qd7 {[%clk 0:02:09]} 17. Nh4 {[%clk 0:01:57]}  Rdf8 {[%clk 0:01:58]} 18. f4 {[%clk 0:01:46]}  f5 {[%clk 0:01:58]} 19. gxf5 {[%clk 0:01:32]}  Nxf5 {[%clk 0:01:57]} 20. Nxf5 {[%clk 0:01:19]}  Rxf5 {[%clk 0:01:56]} 21. Bg4 {[%clk 0:01:19]}  Rf7 {[%clk 0:01:42]} 22. Bh4 {[%clk 0:01:18]}  Rhf8 {[%clk 0:01:39]} 23. O-O {[%clk 0:01:13]}  Ne7 {[%clk 0:01:38]} 24. Bxe7 {[%clk 0:01:07]}  Qxe7 {[%clk 0:01:37]} 25. Qh2 {[%clk 0:00:58]}  Be8 {[%clk 0:01:16]} 26. Kh1 {[%clk 0:00:55]}  Rf5 {[%clk 0:01:16]} 27. Rf3 {[%clk 0:00:47]}  R8f7 {[%clk 0:01:12]} 28. a4 {[%clk 0:00:45]}  a5 {[%clk 0:01:11]} 29. Kg1 {[%clk 0:00:37]}  Qf8 {[%clk 0:01:11]} 30. Bxf5 {[%clk 0:00:34]}  Rxf5 {[%clk 0:01:11]} 31. Kf2 {[%clk 0:00:32]}  Bxh5 {[%clk 0:01:09]} 32. Rg3 {[%clk 0:00:20]}  Rxf4+ {[%clk 0:01:09]} 33. Kg1 {[%clk 0:00:20]}  Qf7 {[%clk 0:00:59]} 34. Qg2 {[%clk 0:00:20]}  g5 {[%clk 0:00:48]} 35. Rf1 {[%clk 0:00:20]}  Bg6 {[%clk 0:00:44]} 36. Rxf4 {[%clk 0:00:19]}  Qxf4 {[%clk 0:00:44]} 37. Rf3 {[%clk 0:00:19]}  Qc1+ {[%clk 0:00:41]} 38. Rf1 {[%clk 0:00:19]}  Qe3+ {[%clk 0:00:35]} 39. Qf2 {[%clk 0:00:18]}  Qxc3 {[%clk 0:00:34]} 40. Qf6 {[%clk 0:00:17]}  Qg3+ {[%clk 0:00:34]} 41. Kh1 {[%clk 0:00:16]}  Be4+ {[%clk 0:00:34]} 0-1


[Site "https://www.chess.com"]

[Event "Titled Tuesday Blitz January 03 Early 2023"]
[White "Krienke, Makaio"]
[Black "Hnydiuk, Aleksander"]
[WhiteFideId "2038854"]
[BlackFideId "1109057"]
[WhiteElo "2115"]
[BlackElo "2363"]
[Result "1-0"]
[Round "11"]
[TimeControl "180+2"]
[Date "2023.01.03"]
[WhiteClock "0:01:04"]
[BlackClock "0:01:52"]

1. e4 {[%clk 0:03:00]}  g6 {[%clk 0:02:56]} 2. d4 {[%clk 0:03:00]}  Bg7 {[%clk 0:02:57]} 3. Be3 {[%clk 0:03:00]}  d5 {[%clk 0:02:56]} 4. exd5 {[%clk 0:02:57]}  Nf6 {[%clk 0:02:53]} 5. c4 {[%clk 0:02:56]}  b5 {[%clk 0:02:53]} 6. Nc3 {[%clk 0:02:53]}  bxc4 {[%clk 0:02:28]} 7. Bxc4 {[%clk 0:02:52]}  O-O {[%clk 0:02:29]} 8. h3 {[%clk 0:02:37]}  Nbd7 {[%clk 0:02:28]} 9. Nge2 {[%clk 0:02:35]}  Nb6 {[%clk 0:02:29]} 10. Qd3 {[%clk 0:02:29]}  a5 {[%clk 0:02:24]} 11. O-O {[%clk 0:02:18]}  Nxc4 {[%clk 0:02:24]} 12. Qxc4 {[%clk 0:02:18]}  Ba6 {[%clk 0:02:25]} 13. Qc5 {[%clk 0:02:15]}  Rb8 {[%clk 0:02:23]} 14. Qxa5 {[%clk 0:02:10]}  Bxe2 {[%clk 0:02:16]} 15. Nxe2 {[%clk 0:02:09]}  Rxb2 {[%clk 0:02:17]} 16. Nf4 {[%clk 0:02:02]}  Qa8 {[%clk 0:02:16]} 17. Qxc7 {[%clk 0:01:57]}  Nxd5 {[%clk 0:02:12]} 18. Nxd5 {[%clk 0:01:56]}  Qxd5 {[%clk 0:02:12]} 19. Qxe7 {[%clk 0:01:55]}  Rxa2 {[%clk 0:02:12]} 20. Rxa2 {[%clk 0:01:53]}  Qxa2 {[%clk 0:02:13]} 21. Rd1 {[%clk 0:01:48]}  Qe6 {[%clk 0:02:07]} 22. Qb7 {[%clk 0:01:39]}  Rd8 {[%clk 0:02:05]} 23. d5 {[%clk 0:01:38]}  Qd7 {[%clk 0:02:03]} 24. Qb6 {[%clk 0:01:26]}  h5 {[%clk 0:02:00]} 25. Bg5 {[%clk 0:01:26]}  Re8 {[%clk 0:01:57]} 26. d6 {[%clk 0:01:26]}  Re6 {[%clk 0:01:56]} 27. Be7 {[%clk 0:01:21]}  Be5 {[%clk 0:01:53]} 28. Qb8+ {[%clk 0:01:04]}  Kh7 {[%clk 0:01:52]} 29. Qf8 {[%clk 0:01:04]} 1-0


[Site "https://www.chess.com"]

[Event "Titled Tuesday Blitz January 03 Early 2023"]
[White "Melian, Juan Sebastian"]
[Black "Sadovsky, Artem"]
[WhiteFideId "3706575"]
[BlackFideId "4155840"]
[WhiteElo "2293"]
[BlackElo "2276"]
[Result "0-1"]
[Round "11"]
[TimeControl "180+2"]
[Date "2023.01.03"]
[WhiteClock "0:00:03"]
[BlackClock "0:00:28"]

1. d4 {[%clk 0:02:55]}  g6 {[%clk 0:02:59]} 2. c4 {[%clk 0:02:53]}  Bg7 {[%clk 0:02:59]} 3. Nc3 {[%clk 0:02:47]}  d6 {[%clk 0:02:59]} 4. e4 {[%clk 0:02:46]}  e5 {[%clk 0:02:59]} 5. Nge2 {[%clk 0:02:45]}  Nc6 {[%clk 0:02:58]} 6. Be3 {[%clk 0:02:43]}  f5 {[%clk 0:02:57]} 7. dxe5 {[%clk 0:02:35]}  Nxe5 {[%clk 0:02:54]} 8. Ng3 {[%clk 0:02:30]}  fxe4 {[%clk 0:02:51]} 9. Ngxe4 {[%clk 0:02:27]}  Nf6 {[%clk 0:02:50]} 10. Be2 {[%clk 0:02:23]}  Nxe4 {[%clk 0:02:47]} 11. Nxe4 {[%clk 0:02:22]}  O-O {[%clk 0:02:48]} 12. O-O {[%clk 0:02:19]}  Bf5 {[%clk 0:02:37]} 13. Ng3 {[%clk 0:02:09]}  Be6 {[%clk 0:02:31]} 14. Rc1 {[%clk 0:02:08]}  Qd7 {[%clk 0:02:23]} 15. Bd4 {[%clk 0:02:07]}  Rae8 {[%clk 0:02:20]} 16. b3 {[%clk 0:02:03]}  Qf7 {[%clk 0:02:18]} 17. h3 {[%clk 0:01:39]}  a5 {[%clk 0:02:11]} 18. Qd2 {[%clk 0:01:25]}  b6 {[%clk 0:02:07]} 19. f4 {[%clk 0:01:14]}  Nc6 {[%clk 0:02:07]} 20. Bxg7 {[%clk 0:01:15]}  Qxg7 {[%clk 0:02:07]} 21. Rcd1 {[%clk 0:01:12]}  Bd7 {[%clk 0:02:00]} 22. Bf3 {[%clk 0:01:10]}  Nd8 {[%clk 0:01:52]} 23. Rde1 {[%clk 0:00:43]}  Kh8 {[%clk 0:01:51]} 24. Kh2 {[%clk 0:00:40]}  Ne6 {[%clk 0:01:50]} 25. Bd5 {[%clk 0:00:31]}  Qd4 {[%clk 0:01:42]} 26. Qc1 {[%clk 0:00:20]}  Nxf4 {[%clk 0:01:39]} 27. Rxe8 {[%clk 0:00:18]}  Bxe8 {[%clk 0:01:40]} 28. Ne2 {[%clk 0:00:12]}  Qe5 {[%clk 0:01:22]} 29. Nxf4 {[%clk 0:00:10]}  g5 {[%clk 0:01:22]} 30. g3 {[%clk 0:00:06]}  gxf4 {[%clk 0:01:21]} 31. Rxf4 {[%clk 0:00:06]}  Rxf4 {[%clk 0:01:17]} 32. Qxf4 {[%clk 0:00:07]}  Qxf4 {[%clk 0:01:09]} 33. gxf4 {[%clk 0:00:08]}  Bg6 {[%clk 0:01:09]} 34. a3 {[%clk 0:00:07]}  c5 {[%clk 0:01:05]} 35. Kg3 {[%clk 0:00:02]}  Bc2 {[%clk 0:01:05]} 36. Kg4 {[%clk 0:00:03]}  Bxb3 {[%clk 0:01:05]} 37. Kf5 {[%clk 0:00:03]}  b5 {[%clk 0:01:02]} 38. Ke6 {[%clk 0:00:03]}  Bxc4 {[%clk 0:01:00]} 39. Kxd6 {[%clk 0:00:03]}  Bxd5 {[%clk 0:00:58]} 40. Kxd5 {[%clk 0:00:03]}  b4 {[%clk 0:00:58]} 41. axb4 {[%clk 0:00:02]}  cxb4 {[%clk 0:00:58]} 42. Ke6 {[%clk 0:00:03]}  b3 {[%clk 0:00:28]} 43. f5 {[%clk 0:00:01]}  b2 {[%clk 0:00:29]} 44. f6 {[%clk 0:00:02]}  b1=Q {[%clk 0:00:29]} 45. f7 {[%clk 0:00:02]}  Qb4 {[%clk 0:00:27]} 46. h4 {[%clk 0:00:01]}  Qf8 {[%clk 0:00:28]} 47. h5 {[%clk 0:00:02]}  h6 {[%clk 0:00:27]} 48. Kf6 {[%clk 0:00:02]}  a4 {[%clk 0:00:27]} 49. Kg6 {[%clk 0:00:01]}  a3 {[%clk 0:00:28]} 50. Kf5 {[%clk 0:00:01]}  a2 {[%clk 0:00:29]} 51. Kg6 {[%clk 0:00:02]}  a1=Q {[%clk 0:00:28]} 52. Kf5 {[%clk 0:00:03]} 0-1


[Site "https://www.chess.com"]

[Event "Titled Tuesday Blitz January 03 Early 2023"]
[White "Md, Imran"]
[Black "Goltseva, Ekaterina"]
[WhiteFideId "25748580"]
[BlackFideId "24173770"]
[WhiteElo "2284"]
[BlackElo "2283"]
[Result "1-0"]
[Round "11"]
[TimeControl "180+2"]
[Date "2023.01.03"]
[WhiteClock "0:01:29"]
[BlackClock "0:00:04"]

1. e4 {[%clk 0:03:00]}  c5 {[%clk 0:02:06]} 2. Nf3 {[%clk 0:02:58]}  e6 {[%clk 0:02:07]} 3. d4 {[%clk 0:02:56]}  cxd4 {[%clk 0:02:07]} 4. Nxd4 {[%clk 0:02:55]}  Nf6 {[%clk 0:02:08]} 5. Nc3 {[%clk 0:02:54]}  Nc6 {[%clk 0:02:09]} 6. Ndb5 {[%clk 0:02:52]}  Bc5 {[%clk 0:02:09]} 7. Nd6+ {[%clk 0:02:49]}  Ke7 {[%clk 0:02:09]} 8. Bf4 {[%clk 0:02:47]}  e5 {[%clk 0:02:02]} 9. Nf5+ {[%clk 0:02:46]}  Kf8 {[%clk 0:02:01]} 10. Be3 {[%clk 0:02:47]}  Bb4 {[%clk 0:02:01]} 11. Bd3 {[%clk 0:02:36]}  d5 {[%clk 0:01:59]} 12. exd5 {[%clk 0:02:33]}  Nxd5 {[%clk 0:01:57]} 13. O-O {[%clk 0:02:31]}  Nxc3 {[%clk 0:01:53]} 14. bxc3 {[%clk 0:02:30]}  Bxc3 {[%clk 0:01:53]} 15. Rb1 {[%clk 0:02:22]}  h5 {[%clk 0:01:41]} 16. h4 {[%clk 0:02:17]}  Bxf5 {[%clk 0:01:35]} 17. Bxf5 {[%clk 0:02:12]}  b6 {[%clk 0:01:30]} 18. g3 {[%clk 0:02:08]}  Bd4 {[%clk 0:01:22]} 19. Qf3 {[%clk 0:02:06]}  Qf6 {[%clk 0:01:10]} 20. Bg5 {[%clk 0:02:03]}  Qd6 {[%clk 0:01:06]} 21. Rbd1 {[%clk 0:02:02]}  f6 {[%clk 0:00:44]} 22. Be3 {[%clk 0:01:54]}  Qc5 {[%clk 0:00:35]} 23. Bd7 {[%clk 0:01:54]}  Ke7 {[%clk 0:00:10]} 24. Bxc6 {[%clk 0:01:53]}  Bxe3 {[%clk 0:00:10]} 25. Bxa8 {[%clk 0:01:51]}  Bd4 {[%clk 0:00:10]} 26. Be4 {[%clk 0:01:48]}  Rd8 {[%clk 0:00:10]} 27. c3 {[%clk 0:01:46]}  Bxc3 {[%clk 0:00:10]} 28. Rxd8 {[%clk 0:01:45]}  Kxd8 {[%clk 0:00:11]} 29. Qxh5 {[%clk 0:01:43]}  Bd4 {[%clk 0:00:10]} 30. Kg2 {[%clk 0:01:37]}  Qa3 {[%clk 0:00:08]} 31. Qf7 {[%clk 0:01:34]}  a5 {[%clk 0:00:07]} 32. Bf5 {[%clk 0:01:31]}  Qa4 {[%clk 0:00:07]} 33. Rc1 {[%clk 0:01:29]}  Bc5 {[%clk 0:00:05]} 34. Rxc5 {[%clk 0:01:27]}  bxc5 {[%clk 0:00:04]} 35. Qf8+ {[%clk 0:01:28]}  Kc7 {[%clk 0:00:02]} 36. Qxc5+ {[%clk 0:01:28]}  Kb8 {[%clk 0:00:03]} 37. Qb6+ {[%clk 0:01:28]}  Ka8 {[%clk 0:00:03]} 38. f3 {[%clk 0:01:27]}  Qxa2+ {[%clk 0:00:04]} 39. Kh3 {[%clk 0:01:26]}  Qe2 {[%clk 0:00:04]} 40. Be4+ {[%clk 0:01:27]}  Qxe4 {[%clk 0:00:04]} 41. fxe4 {[%clk 0:01:28]}  a4 {[%clk 0:00:03]} 42. Qa5+ {[%clk 0:01:28]}  Kb7 {[%clk 0:00:04]} 43. Qxa4 {[%clk 0:01:29]} 1-0


[Site "https://www.chess.com"]

[Event "Titled Tuesday Blitz January 03 Early 2023"]
[White "Degenbaev, Aziz"]
[Black "Turzo, Attila"]
[WhiteFideId "13802640"]
[BlackFideId "704954"]
[WhiteElo "2203"]
[BlackElo "2279"]
[Result "0-1"]
[Round "11"]
[TimeControl "180+2"]
[Date "2023.01.03"]
[WhiteClock "0:00:17"]
[BlackClock "0:00:22"]

1. g3 {[%clk 0:03:00]}  d5 {[%clk 0:02:57]} 2. f4 {[%clk 0:03:00]}  Nf6 {[%clk 0:02:56]} 3. Bg2 {[%clk 0:03:00]}  g6 {[%clk 0:02:47]} 4. Nf3 {[%clk 0:03:00]}  Bg7 {[%clk 0:02:47]} 5. O-O {[%clk 0:03:00]}  O-O {[%clk 0:02:48]} 6. d3 {[%clk 0:03:00]}  c5 {[%clk 0:02:47]} 7. Qe1 {[%clk 0:03:01]}  d4 {[%clk 0:02:45]} 8. Na3 {[%clk 0:03:00]}  Nc6 {[%clk 0:02:43]} 9. Bd2 {[%clk 0:03:01]}  Rb8 {[%clk 0:02:43]} 10. h3 {[%clk 0:02:55]}  Nd5 {[%clk 0:02:43]} 11. g4 {[%clk 0:02:54]}  b6 {[%clk 0:02:42]} 12. Nc4 {[%clk 0:02:51]}  Bb7 {[%clk 0:02:42]} 13. Qh4 {[%clk 0:02:42]}  e6 {[%clk 0:02:39]} 14. Qg3 {[%clk 0:02:37]}  f5 {[%clk 0:02:37]} 15. Ng5 {[%clk 0:02:34]}  Qd7 {[%clk 0:02:33]} 16. Rae1 {[%clk 0:02:24]}  b5 {[%clk 0:02:27]} 17. Na3 {[%clk 0:02:21]}  a6 {[%clk 0:02:25]} 18. Nb1 {[%clk 0:02:13]}  Rbe8 {[%clk 0:02:15]} 19. c3 {[%clk 0:01:50]}  e5 {[%clk 0:02:10]} 20. fxe5 {[%clk 0:01:50]}  Nxe5 {[%clk 0:02:03]} 21. cxd4 {[%clk 0:01:40]}  cxd4 {[%clk 0:02:02]} 22. gxf5 {[%clk 0:01:39]}  Rxf5 {[%clk 0:01:57]} 23. Rxf5 {[%clk 0:01:38]}  Qxf5 {[%clk 0:01:56]} 24. Rf1 {[%clk 0:01:39]}  Qd7 {[%clk 0:01:54]} 25. h4 {[%clk 0:01:29]}  Nf6 {[%clk 0:01:43]} 26. Bf4 {[%clk 0:01:15]}  Nh5 {[%clk 0:01:41]} 27. Qh3 {[%clk 0:01:14]}  Qxh3 {[%clk 0:01:33]} 28. Bxh3 {[%clk 0:01:13]}  Nxf4 {[%clk 0:01:33]} 29. Rxf4 {[%clk 0:01:14]}  Bd5 {[%clk 0:01:30]} 30. Nd2 {[%clk 0:00:52]}  Bxa2 {[%clk 0:01:26]} 31. Rxd4 {[%clk 0:00:46]}  h6 {[%clk 0:01:16]} 32. Nge4 {[%clk 0:00:46]}  Nc4 {[%clk 0:01:11]} 33. Rd7 {[%clk 0:00:35]}  Nxd2 {[%clk 0:01:10]} 34. Nxd2 {[%clk 0:00:36]}  Rxe2 {[%clk 0:01:09]} 35. Ne4 {[%clk 0:00:36]}  Rxb2 {[%clk 0:01:01]} 36. Rd8+ {[%clk 0:00:28]}  Kh7 {[%clk 0:00:52]} 37. Rd7 {[%clk 0:00:27]}  h5 {[%clk 0:00:33]} 38. Ng5+ {[%clk 0:00:26]}  Kh6 {[%clk 0:00:34]} 39. Rd6 {[%clk 0:00:25]}  Rb1+ {[%clk 0:00:31]} 40. Kf2 {[%clk 0:00:24]}  Rb4 {[%clk 0:00:30]} 41. Bf5 {[%clk 0:00:20]}  Rf4+ {[%clk 0:00:29]} 42. Ke3 {[%clk 0:00:15]}  Rxf5 {[%clk 0:00:29]} 43. Rxa6 {[%clk 0:00:16]}  Re5+ {[%clk 0:00:28]} 44. Kf4 {[%clk 0:00:16]}  Rf5+ {[%clk 0:00:27]} 45. Ke3 {[%clk 0:00:16]}  Bd5 {[%clk 0:00:26]} 46. Rd6 {[%clk 0:00:16]}  b4 {[%clk 0:00:26]} 47. Rb6 {[%clk 0:00:10]}  b3 {[%clk 0:00:26]} 48. Rb8 {[%clk 0:00:10]}  b2 {[%clk 0:00:25]} 49. Rb4 {[%clk 0:00:09]}  Rf1 {[%clk 0:00:24]} 50. Rxb2 {[%clk 0:00:09]}  Bxb2 {[%clk 0:00:23]} 51. Kd2 {[%clk 0:00:10]}  Bc1+ {[%clk 0:00:23]} 52. Kc2 {[%clk 0:00:10]}  Bxg5 {[%clk 0:00:24]} 53. hxg5+ {[%clk 0:00:11]}  Kxg5 {[%clk 0:00:25]} 54. Kc3 {[%clk 0:00:12]}  Rf5 {[%clk 0:00:24]} 55. Kd4 {[%clk 0:00:13]}  h4 {[%clk 0:00:25]} 56. Kc5 {[%clk 0:00:14]}  h3 {[%clk 0:00:26]} 57. Kd6 {[%clk 0:00:14]}  h2 {[%clk 0:00:27]} 58. Kc7 {[%clk 0:00:15]}  h1=Q {[%clk 0:00:28]} 59. Kd8 {[%clk 0:00:16]}  Qh7 {[%clk 0:00:22]} 60. Kc8 {[%clk 0:00:17]}  Rf8# {[%clk 0:00:22]} 0-1


[Site "https://www.chess.com"]

[Event "Titled Tuesday Blitz January 03 Early 2023"]
[White "Parpiev, Isaak"]
[Black "Ljukin, Sergei"]
[WhiteFideId "34281576"]
[BlackFideId "14102200"]
[WhiteElo "2167"]
[BlackElo "2362"]
[Result "0-1"]
[Round "11"]
[TimeControl "180+2"]
[Date "2023.01.03"]
[WhiteClock "0:00:27"]
[BlackClock "0:01:30"]

1. Nf3 {[%clk 0:02:11]}  d5 {[%clk 0:02:59]} 2. g3 {[%clk 0:02:12]}  Nc6 {[%clk 0:02:59]} 3. Bg2 {[%clk 0:02:12]}  e5 {[%clk 0:02:59]} 4. O-O {[%clk 0:02:13]}  Bg4 {[%clk 0:02:59]} 5. h3 {[%clk 0:02:12]}  Be6 {[%clk 0:02:56]} 6. d3 {[%clk 0:02:11]}  f6 {[%clk 0:02:56]} 7. e4 {[%clk 0:02:09]}  Qd7 {[%clk 0:02:50]} 8. exd5 {[%clk 0:02:07]}  Bxd5 {[%clk 0:02:49]} 9. Nc3 {[%clk 0:02:07]}  Be6 {[%clk 0:02:50]} 10. Kh2 {[%clk 0:02:08]}  O-O-O {[%clk 0:02:48]} 11. Be3 {[%clk 0:02:07]}  g5 {[%clk 0:02:43]} 12. Nd2 {[%clk 0:02:00]}  Nge7 {[%clk 0:02:30]} 13. a3 {[%clk 0:01:57]}  Nf5 {[%clk 0:02:30]} 14. b4 {[%clk 0:01:54]}  Nxe3 {[%clk 0:02:30]} 15. fxe3 {[%clk 0:01:54]}  Be7 {[%clk 0:02:24]} 16. Nb5 {[%clk 0:01:49]}  Kb8 {[%clk 0:02:18]} 17. Qe2 {[%clk 0:01:39]}  h5 {[%clk 0:02:03]} 18. Ne4 {[%clk 0:01:31]}  f5 {[%clk 0:01:58]} 19. Nc5 {[%clk 0:01:31]}  Bxc5 {[%clk 0:01:58]} 20. bxc5 {[%clk 0:01:31]}  h4 {[%clk 0:01:58]} 21. g4 {[%clk 0:01:19]}  fxg4 {[%clk 0:01:53]} 22. hxg4 {[%clk 0:01:12]}  Bxg4 {[%clk 0:01:53]} 23. Qf2 {[%clk 0:01:06]}  Be6 {[%clk 0:01:47]} 24. d4 {[%clk 0:00:59]}  g4 {[%clk 0:01:42]} 25. Qf6 {[%clk 0:00:58]}  g3+ {[%clk 0:01:40]} 26. Kg1 {[%clk 0:00:56]}  h3 {[%clk 0:01:39]} 27. Be4 {[%clk 0:00:45]}  Bd5 {[%clk 0:01:31]} 28. Qf4 {[%clk 0:00:27]}  exf4 {[%clk 0:01:30]} 0-1


[Site "https://www.chess.com"]